[Event "Early-Titled-Tuesday-Blitz-May-28-2024"]
[Site "Chess.com"]
[Date "2024.05.28"]
[Round "2"]
[White "KuzubovYuriy"]
[Black "DrCeltic"]
[Result "1-0"]
[WhiteElo "2901"]
[BlackElo "2597"]
[TimeControl "180+1"]
[EndTime "8:18:47 PDT"]
[Termination "KuzubovYuriy won by resignation"]

1. d4 {[%clk 0:03:00.9]} 1... Nf6 {[%clk 0:02:59.3]} 2. c4 {[%clk 0:03:01.3]}
2... c6 {[%clk 0:02:59.5]} 3. Nf3 {[%clk 0:03:00.8]} 3... d5 {[%clk 0:02:59.7]}
4. Nc3 {[%clk 0:03:01.4]} 4... dxc4 {[%clk 0:03:00]} 5. a4 {[%clk 0:03:01.4]}
5... Bf5 {[%clk 0:03:00.6]} 6. Nh4 {[%clk 0:03:01.9]} 6... Bd7 {[%clk
0:03:00.1]} 7. e4 {[%clk 0:03:01.3]} 7... e6 {[%clk 0:02:52.5]} 8. Bxc4 {[%clk
0:03:01.1]} 8... c5 {[%clk 0:02:52.6]} 9. d5 {[%clk 0:02:54.2]} 9... Nxd5 {[%clk
0:02:30.9]} 10. exd5 {[%clk 0:02:43.4]} 10... Qxh4 {[%clk 0:02:26.1]} 11. Qe2
{[%clk 0:02:43.1]} 11... Be7 {[%clk 0:02:07.4]} 12. O-O {[%clk 0:02:37.7]} 12...
O-O {[%clk 0:01:55.8]} 13. Re1 {[%clk 0:02:13.8]} 13... exd5 {[%clk 0:01:15.9]}
14. Nxd5 {[%clk 0:02:07.4]} 14... Bd6 {[%clk 0:01:15.2]} 15. g3 {[%clk
0:02:04.8]} 15... Qh3 {[%clk 0:01:06.1]} 16. Bf4 {[%clk 0:01:55.5]} 16... Bxf4
{[%clk 0:00:56.5]} 17. Nxf4 {[%clk 0:01:56.4]} 17... Qg4 {[%clk 0:00:55.5]} 18.
Qxg4 {[%clk 0:01:36.2]} 18... Bxg4 {[%clk 0:00:54.9]} 19. Re7 {[%clk 0:01:35.8]}
19... Nc6 {[%clk 0:00:54]} 20. Rxb7 {[%clk 0:01:34.4]} 20... Rab8 {[%clk
0:00:51]} 21. Rb5 {[%clk 0:01:34.4]} 21... Nd4 {[%clk 0:00:47.6]} 22. Rxc5
{[%clk 0:01:31.6]} 22... Rxb2 {[%clk 0:00:43.7]} 23. h3 {[%clk 0:01:29.8]} 23...
Be6 {[%clk 0:00:35.1]} 24. Rd1 {[%clk 0:01:23.4]} 24... Nf3+ {[%clk 0:00:28.2]}
25. Kg2 {[%clk 0:01:18]} 25... Bxc4 {[%clk 0:00:28.5]} 26. Rxc4 {[%clk
0:01:15.8]} 26... Ne5 {[%clk 0:00:27.9]} 27. Rc7 {[%clk 0:01:10.6]} 27... Ng6
{[%clk 0:00:26.3]} 28. Rd4 {[%clk 0:01:03.9]} 28... a5 {[%clk 0:00:21.8]} 29.
Ra7 {[%clk 0:01:01.3]} 29... Rb4 {[%clk 0:00:20.4]} 30. Rxb4 {[%clk 0:00:38.3]}
30... axb4 {[%clk 0:00:20.7]} 31. Rb7 {[%clk 0:00:34]} 31... Ra8 {[%clk
0:00:19]} 32. Nxg6 {[%clk 0:00:32.2]} 32... hxg6 {[%clk 0:00:18.9]} 33. Rxb4
{[%clk 0:00:32.9]} 33... f6 {[%clk 0:00:19.3]} 34. h4 {[%clk 0:00:32.4]} 34...
Kf7 {[%clk 0:00:19.8]} 35. Kf3 {[%clk 0:00:33.1]} 35... g5 {[%clk 0:00:19.3]}
36. hxg5 {[%clk 0:00:32.9]} 36... fxg5 {[%clk 0:00:20.2]} 37. Kg4 {[%clk
0:00:32.6]} 37... Ra5 {[%clk 0:00:18.9]} 38. Kh5 {[%clk 0:00:29.4]} 38... g6+
{[%clk 0:00:16.1]} 39. Kh6 {[%clk 0:00:22.6]} 39... Kf6 {[%clk 0:00:15.6]} 40.
f4 {[%clk 0:00:16.9]} 40... g4 {[%clk 0:00:11]} 41. Rb6+ {[%clk 0:00:17]} 41...
Kf5 {[%clk 0:00:11.5]} 42. Rb5+ {[%clk 0:00:15.3]} 1-0

[Event "Early-Titled-Tuesday-Blitz-May-28-2024"]
[Site "Chess.com"]
[Date "2024.05.28"]
[Round "2"]
[White "scarabee43"]
[Black "xakevicius91"]
[Result "1/2-1/2"]
[WhiteElo "2815"]
[BlackElo "2486"]
[TimeControl "180+1"]
[EndTime "8:18:47 PDT"]
[Termination "Game drawn by repetition"]

1. Nf3 {[%clk 0:03:00.9]} 1... Nf6 {[%clk 0:02:58.9]} 2. b3 {[%clk 0:03:01.4]}
2... b6 {[%clk 0:02:57.4]} 3. Bb2 {[%clk 0:03:01.7]} 3... Bb7 {[%clk 0:02:58.1]}
4. g3 {[%clk 0:03:01.8]} 4... e6 {[%clk 0:02:56.6]} 5. Bg2 {[%clk 0:03:02.3]}
5... Be7 {[%clk 0:02:56.4]} 6. O-O {[%clk 0:03:02.9]} 6... O-O {[%clk
0:02:56.7]} 7. Re1 {[%clk 0:03:02.2]} 7... c5 {[%clk 0:02:54.4]} 8. d3 {[%clk
0:02:57.6]} 8... d6 {[%clk 0:02:52.6]} 9. e4 {[%clk 0:02:57.3]} 9... Nbd7 {[%clk
0:02:53.2]} 10. Nbd2 {[%clk 0:02:56.7]} 10... Qc7 {[%clk 0:02:52.8]} 11. a4
{[%clk 0:02:55.8]} 11... a6 {[%clk 0:02:53]} 12. Qe2 {[%clk 0:02:52.5]} 12... b5
{[%clk 0:02:52.9]} 13. axb5 {[%clk 0:02:42.4]} 13... axb5 {[%clk 0:02:53.8]} 14.
h4 {[%clk 0:02:41.3]} 14... Ne5 {[%clk 0:02:29.9]} 15. Nxe5 {[%clk 0:02:35.1]}
15... dxe5 {[%clk 0:02:28.2]} 16. Bc3 {[%clk 0:02:22.7]} 16... Nd7 {[%clk
0:02:24.2]} 17. Qf1 {[%clk 0:02:18.6]} 17... Bc6 {[%clk 0:02:23.2]} 18. Rxa8
{[%clk 0:02:17.3]} 18... Rxa8 {[%clk 0:02:21.8]} 19. Ra1 {[%clk 0:02:18]} 19...
Qb7 {[%clk 0:02:13]} 20. Qb1 {[%clk 0:02:05.7]} 20... f5 {[%clk 0:01:58.9]} 21.
b4 {[%clk 0:01:47.2]} 21... Rxa1 {[%clk 0:01:52]} 22. Qxa1 {[%clk 0:01:46.9]}
22... cxb4 {[%clk 0:01:51.2]} 23. Bxe5 {[%clk 0:01:47.5]} 23... Bf8 {[%clk
0:01:11.8]} 24. Bd4 {[%clk 0:01:39.7]} 24... Qc7 {[%clk 0:01:07.6]} 25. Qa2
{[%clk 0:01:31.9]} 25... Qd6 {[%clk 0:01:06.3]} 26. exf5 {[%clk 0:01:26.2]}
26... Bxg2 {[%clk 0:01:00]} 27. Kxg2 {[%clk 0:01:24.2]} 27... Qxd4 {[%clk
0:00:42.7]} 28. fxe6 {[%clk 0:01:15.5]} 28... b3 {[%clk 0:00:33.1]} 29. Qxb3
{[%clk 0:01:07.9]} 29... Nc5 {[%clk 0:00:33]} 30. Qa2 {[%clk 0:01:08.1]} 30...
Be7 {[%clk 0:00:25.2]} 31. Nf3 {[%clk 0:00:58.5]} 31... Qd6 {[%clk 0:00:20.5]}
32. Qa8+ {[%clk 0:00:58.6]} 32... Qd8 {[%clk 0:00:18.6]} 33. Qc6 {[%clk
0:00:56.5]} 33... Qd6 {[%clk 0:00:18.3]} 34. Qe8+ {[%clk 0:00:54.7]} 34... Bf8
{[%clk 0:00:18.6]} 35. Qf7+ {[%clk 0:00:31.4]} 35... Kh8 {[%clk 0:00:18.4]} 36.
Ng5 {[%clk 0:00:10.7]} 36... h6 {[%clk 0:00:18.2]} 37. Qh5 {[%clk 0:00:10.7]}
37... Kg8 {[%clk 0:00:11.9]} 38. Qf7+ {[%clk 0:00:10.3]} 38... Kh8 {[%clk
0:00:12]} 39. Qh5 {[%clk 0:00:07.4]} 39... Kg8 {[%clk 0:00:07.7]} 40. Qf7+
{[%clk 0:00:07.4]} 40... Kh8 {[%clk 0:00:07.8]} 1/2-1/2

[Event "Early-Titled-Tuesday-Blitz-May-28-2024"]
[Site "Chess.com"]
[Date "2024.05.28"]
[Round "2"]
[White "Andrey_Klymchuk"]
[Black "briesmas"]
[Result "1-0"]
[WhiteElo "2700"]
[BlackElo "2398"]
[TimeControl "180+1"]
[EndTime "8:18:49 PDT"]
[Termination "Andrey_Klymchuk won on time"]

1. e4 {[%clk 0:03:00.9]} 1... c5 {[%clk 0:02:59]} 2. Nf3 {[%clk 0:03:00.7]} 2...
d6 {[%clk 0:02:58.7]} 3. d4 {[%clk 0:03:01.2]} 3... cxd4 {[%clk 0:02:58.3]} 4.
Nxd4 {[%clk 0:03:02.1]} 4... Nf6 {[%clk 0:02:58.7]} 5. f3 {[%clk 0:03:02]} 5...
a6 {[%clk 0:02:57.6]} 6. c4 {[%clk 0:03:01.8]} 6... g6 {[%clk 0:02:46.8]} 7. Nc3
{[%clk 0:03:01]} 7... Bg7 {[%clk 0:02:45.9]} 8. Be3 {[%clk 0:03:01.5]} 8... O-O
{[%clk 0:02:45.6]} 9. Be2 {[%clk 0:03:01.8]} 9... Nc6 {[%clk 0:02:44.4]} 10. O-O
{[%clk 0:02:58.9]} 10... Nxd4 {[%clk 0:02:42.9]} 11. Bxd4 {[%clk 0:02:59.1]}
11... Be6 {[%clk 0:02:42.8]} 12. Qd2 {[%clk 0:02:54.2]} 12... Rc8 {[%clk
0:02:42.2]} 13. Nd5 {[%clk 0:02:51.8]} 13... Bxd5 {[%clk 0:02:38.3]} 14. exd5
{[%clk 0:02:51.7]} 14... Nd7 {[%clk 0:02:34.6]} 15. Rfe1 {[%clk 0:02:50.5]}
15... Bxd4+ {[%clk 0:02:32.8]} 16. Qxd4 {[%clk 0:02:50.6]} 16... Qb6 {[%clk
0:02:33.3]} 17. Qxb6 {[%clk 0:02:50.4]} 17... Nxb6 {[%clk 0:02:34.2]} 18. Rac1
{[%clk 0:02:46.4]} 18... Rc7 {[%clk 0:02:23.1]} 19. b3 {[%clk 0:02:46.1]} 19...
Nd7 {[%clk 0:02:19.2]} 20. Bf1 {[%clk 0:02:44.9]} 20... Nf6 {[%clk 0:02:04.7]}
21. Kf2 {[%clk 0:02:44.1]} 21... Rfc8 {[%clk 0:02:04.4]} 22. Ke3 {[%clk
0:02:40.5]} 22... Nxd5+ {[%clk 0:02:03.2]} 23. Kd2 {[%clk 0:02:35.9]} 23... Nf6
{[%clk 0:01:59.3]} 24. g3 {[%clk 0:02:36.2]} 24... Kf8 {[%clk 0:01:59.3]} 25.
Bh3 {[%clk 0:02:35.3]} 25... Rd8 {[%clk 0:01:59.2]} 26. Ke3 {[%clk 0:02:34.3]}
26... a5 {[%clk 0:01:52.4]} 27. Red1 {[%clk 0:02:32.7]} 27... Ke8 {[%clk
0:01:49.4]} 28. Kd4 {[%clk 0:02:32.1]} 28... e6 {[%clk 0:01:45.7]} 29. f4 {[%clk
0:02:31.7]} 29... Ke7 {[%clk 0:01:44.9]} 30. a3 {[%clk 0:02:31]} 30... b6 {[%clk
0:01:43.2]} 31. Bg2 {[%clk 0:02:30.3]} 31... d5 {[%clk 0:01:28.9]} 32. cxd5
{[%clk 0:02:28.3]} 32... Rxc1 {[%clk 0:01:27.3]} 33. Rxc1 {[%clk 0:02:27.8]}
33... Nxd5 {[%clk 0:01:24.2]} 34. Ke4 {[%clk 0:02:19]} 34... Kd6 {[%clk
0:00:53.8]} 35. Kd4 {[%clk 0:02:10]} 35... Ke7 {[%clk 0:00:38.8]} 36. Ke5 {[%clk
0:02:05.6]} 36... f6+ {[%clk 0:00:37.8]} 37. Ke4 {[%clk 0:02:05.6]} 37... Kd6
{[%clk 0:00:34.3]} 38. Kd4 {[%clk 0:02:05.5]} 38... e5+ {[%clk 0:00:28]} 39.
fxe5+ {[%clk 0:02:06.4]} 39... fxe5+ {[%clk 0:00:28.4]} 40. Kd3 {[%clk
0:02:04.4]} 40... Ke6 {[%clk 0:00:16.8]} 41. Ke2 {[%clk 0:01:52.8]} 41... Nf6
{[%clk 0:00:11.7]} 42. Rc7 {[%clk 0:01:49.4]} 42... e4 {[%clk 0:00:08.9]} 43.
Rb7 {[%clk 0:01:40.3]} 43... Rd6 {[%clk 0:00:08.3]} 44. Ke3 {[%clk 0:01:33.5]}
44... Rd3+ {[%clk 0:00:06.7]} 45. Kf4 {[%clk 0:01:31.8]} 45... Rxb3 {[%clk
0:00:07.6]} 46. g4 {[%clk 0:01:30.4]} 46... h6 {[%clk 0:00:04.5]} 47. h4 {[%clk
0:01:29.8]} 47... Nd5+ {[%clk 0:00:04.3]} 48. Kxe4 {[%clk 0:01:29.9]} 48... Re3+
{[%clk 0:00:03]} 49. Kd4 {[%clk 0:01:30.1]} 49... Re5 {[%clk 0:00:02.9]} 50. Rh7
{[%clk 0:01:26.4]} 50... Nf4 {[%clk 0:00:02.7]} 51. Be4 {[%clk 0:01:26.6]} 51...
Kd6 {[%clk 0:00:02]} 52. Rxh6 {[%clk 0:01:26.2]} 52... Re6 {[%clk 0:00:02.4]}
53. Rh8 {[%clk 0:01:23.4]} 53... Ne2+ {[%clk 0:00:02.5]} 54. Kd3 {[%clk
0:01:22.7]} 54... Ng3 {[%clk 0:00:03]} 55. Bf3 {[%clk 0:01:21.9]} 55... Kc5
{[%clk 0:00:02.7]} 56. Rc8+ {[%clk 0:01:20.5]} 56... Kb5 {[%clk 0:00:02.4]} 57.
Rc4 {[%clk 0:01:12.8]} 57... Nf1 {[%clk 0:00:01.6]} 58. a4+ {[%clk 0:01:12.5]}
58... Ka6 {[%clk 0:00:01.3]} 59. Bc6 {[%clk 0:01:12.2]} 59... Re3+ {[%clk
0:00:01]} 60. Kd4 {[%clk 0:01:12.1]} 60... Re6 {[%clk 0:00:01]} 61. Bd5 {[%clk
0:01:10.6]} 61... Rd6 {[%clk 0:00:01]} 62. Rc8 {[%clk 0:01:09.9]} 1-0

[Event "Early-Titled-Tuesday-Blitz-May-28-2024"]
[Site "Chess.com"]
[Date "2024.05.28"]
[Round "2"]
[White "HajiyevKanan"]
[Black "Nechitaylo_Nikita"]
[Result "1-0"]
[WhiteElo "2542"]
[BlackElo "2327"]
[TimeControl "180+1"]
[EndTime "8:18:49 PDT"]
[Termination "HajiyevKanan won on time"]

1. d4 {[%clk 0:03:00.9]} 1... Nf6 {[%clk 0:02:59.8]} 2. Nf3 {[%clk 0:03:01.7]}
2... e6 {[%clk 0:03:00.5]} 3. c4 {[%clk 0:03:01.8]} 3... c5 {[%clk 0:03:00.2]}
4. e3 {[%clk 0:03:01.6]} 4... cxd4 {[%clk 0:02:56.4]} 5. Nxd4 {[%clk 0:03:02.4]}
5... d5 {[%clk 0:02:57.3]} 6. Be2 {[%clk 0:03:02]} 6... Nc6 {[%clk 0:02:57.2]}
7. O-O {[%clk 0:03:02.2]} 7... Bd6 {[%clk 0:02:55.9]} 8. Nc3 {[%clk 0:03:01.6]}
8... O-O {[%clk 0:02:55.8]} 9. cxd5 {[%clk 0:03:01.9]} 9... exd5 {[%clk
0:02:55.7]} 10. b3 {[%clk 0:03:01]} 10... Nxd4 {[%clk 0:02:49.2]} 11. Qxd4
{[%clk 0:03:01.1]} 11... Qc7 {[%clk 0:02:49.8]} 12. Nxd5 {[%clk 0:02:35.6]}
12... Bxh2+ {[%clk 0:02:45.6]} 13. Kh1 {[%clk 0:02:35.9]} 13... Nxd5 {[%clk
0:02:42.4]} 14. Qxd5 {[%clk 0:02:36.1]} 14... Be6 {[%clk 0:02:23.9]} 15. Qh5
{[%clk 0:02:16]} 15... Be5 {[%clk 0:02:02.7]} 16. Ba3 {[%clk 0:02:14.5]} 16...
Bxa1 {[%clk 0:01:31.5]} 17. Bxf8 {[%clk 0:02:12.4]} 17... Rxf8 {[%clk
0:01:27.4]} 18. Rxa1 {[%clk 0:02:12.3]} 18... Qc3 {[%clk 0:01:27]} 19. Rd1
{[%clk 0:01:56.3]} 19... Qc2 {[%clk 0:01:27.1]} 20. Bd3 {[%clk 0:01:56.2]} 20...
g6 {[%clk 0:01:08.9]} 21. Qxh7+ {[%clk 0:01:51.2]} 21... Kxh7 {[%clk 0:01:05.2]}
22. Bxc2 {[%clk 0:01:52.1]} 22... Rc8 {[%clk 0:01:02.1]} 23. Rd2 {[%clk
0:01:49.4]} 23... a5 {[%clk 0:00:54.2]} 24. Kh2 {[%clk 0:01:44.6]} 24... b5
{[%clk 0:00:49.6]} 25. Kg3 {[%clk 0:01:44.5]} 25... b4 {[%clk 0:00:43.5]} 26.
Be4 {[%clk 0:01:41.7]} 26... Rc1 {[%clk 0:00:36.6]} 27. Rc2 {[%clk 0:01:36.9]}
27... Ra1 {[%clk 0:00:28.2]} 28. Kf4 {[%clk 0:01:34.1]} 28... a4 {[%clk
0:00:27]} 29. bxa4 {[%clk 0:00:52.3]} 29... Bxa2 {[%clk 0:00:21.4]} 30. Rb2
{[%clk 0:00:52.4]} 30... b3 {[%clk 0:00:20.1]} 31. Bd5 {[%clk 0:00:52.5]} 31...
Rc1 {[%clk 0:00:01.9]} 32. Bxb3 {[%clk 0:00:44.1]} 32... Bxb3 {[%clk 0:00:02.8]}
33. Rxb3 {[%clk 0:00:44.6]} 33... Rc4+ {[%clk 0:00:03.6]} 34. Kg5 {[%clk
0:00:39.5]} 34... Rxa4 {[%clk 0:00:04.5]} 35. f4 {[%clk 0:00:32.6]} 35... Ra5+
{[%clk 0:00:02.8]} 36. Kg4 {[%clk 0:00:32.4]} 36... Kh6 {[%clk 0:00:01.9]} 37.
e4 {[%clk 0:00:32.7]} 37... f5+ {[%clk 0:00:02]} 38. exf5 {[%clk 0:00:30.2]}
38... gxf5+ {[%clk 0:00:02.9]} 39. Kf3 {[%clk 0:00:29.3]} 39... Kh5 {[%clk
0:00:02.2]} 40. Re3 {[%clk 0:00:30.2]} 40... Kg6 {[%clk 0:00:01]} 41. Re6+
{[%clk 0:00:30.4]} 41... Kh5 {[%clk 0:00:01]} 42. Re5 {[%clk 0:00:31.1]} 42...
Ra3+ {[%clk 0:00:01]} 43. Kf2 {[%clk 0:00:31.6]} 43... Kg4 {[%clk 0:00:01.1]}
44. g3 {[%clk 0:00:28.6]} 44... Re3 {[%clk 0:00:01]} 45. Rxe3 {[%clk 0:00:27.8]}
1-0

[Event "Early-Titled-Tuesday-Blitz-May-28-2024"]
[Site "Chess.com"]
[Date "2024.05.28"]
[Round "2"]
[White "alexrustemov"]
[Black "LeoLV10"]
[Result "1-0"]
[WhiteElo "2835"]
[BlackElo "2571"]
[TimeControl "180+1"]
[EndTime "8:18:51 PDT"]
[Termination "alexrustemov won by resignation"]

1. d4 {[%clk 0:03:00.9]} 1... Nf6 {[%clk 0:02:59.9]} 2. c4 {[%clk 0:03:01.3]}
2... e6 {[%clk 0:03:00.4]} 3. Nf3 {[%clk 0:03:01.3]} 3... c5 {[%clk 0:03:00.9]}
4. d5 {[%clk 0:03:01]} 4... exd5 {[%clk 0:03:01.8]} 5. cxd5 {[%clk 0:03:01.9]}
5... d6 {[%clk 0:03:02.4]} 6. Nc3 {[%clk 0:03:02.5]} 6... g6 {[%clk 0:03:03.3]}
7. h3 {[%clk 0:03:03.1]} 7... Bg7 {[%clk 0:03:04.2]} 8. e4 {[%clk 0:03:03.6]}
8... O-O {[%clk 0:03:05.1]} 9. Bd3 {[%clk 0:03:04]} 9... b5 {[%clk 0:02:59.1]}
10. Bxb5 {[%clk 0:03:03.8]} 10... Nxe4 {[%clk 0:02:57.1]} 11. Nxe4 {[%clk
0:03:04.3]} 11... Qa5+ {[%clk 0:02:57.5]} 12. Nfd2 {[%clk 0:03:04.9]} 12... Qxb5
{[%clk 0:02:55.6]} 13. Nxd6 {[%clk 0:03:05.4]} 13... Qa6 {[%clk 0:02:56.3]} 14.
N2c4 {[%clk 0:03:05.8]} 14... Nd7 {[%clk 0:02:47.9]} 15. O-O {[%clk 0:03:06.2]}
15... Ne5 {[%clk 0:02:45.1]} 16. Nxe5 {[%clk 0:03:05]} 16... Qxd6 {[%clk
0:02:42.4]} 17. Nc6 {[%clk 0:02:54.8]} 17... Bb7 {[%clk 0:02:38.9]} 18. Qf3
{[%clk 0:02:53.2]} 18... Bxc6 {[%clk 0:02:19]} 19. dxc6 {[%clk 0:02:52.5]} 19...
Rac8 {[%clk 0:02:18.9]} 20. Bf4 {[%clk 0:02:23.8]} 20... Qxc6 {[%clk 0:02:17.6]}
21. Qxc6 {[%clk 0:02:24.2]} 21... Rxc6 {[%clk 0:02:18.5]} 22. Rab1 {[%clk
0:02:23]} 22... Ra6 {[%clk 0:02:13.6]} 23. a3 {[%clk 0:02:09.9]} 23... Rb6
{[%clk 0:02:04.6]} 24. b3 {[%clk 0:02:09]} 24... Rc8 {[%clk 0:02:00.3]} 25. Be3
{[%clk 0:02:01.8]} 25... Ra6 {[%clk 0:01:56.6]} 26. Rfc1 {[%clk 0:01:55.8]}
26... Rxa3 {[%clk 0:01:53.3]} 27. Rxc5 {[%clk 0:01:55.3]} 27... Rb8 {[%clk
0:01:48.5]} 28. b4 {[%clk 0:01:50.1]} 28... Bf8 {[%clk 0:01:43.5]} 29. Rc7
{[%clk 0:01:28.9]} 29... Rxb4 {[%clk 0:01:28.5]} 30. Rd1 {[%clk 0:01:27.3]}
30... Rb8 {[%clk 0:00:57.2]} 31. Rdd7 {[%clk 0:01:23.8]} 31... Ra6 {[%clk
0:00:39.5]} 32. g4 {[%clk 0:01:16.2]} 32... Rf6 {[%clk 0:00:31.8]} 33. Bd4
{[%clk 0:01:11.3]} 33... Rf4 {[%clk 0:00:29]} 34. Be5 {[%clk 0:01:05]} 34... Rf3
{[%clk 0:00:20.8]} 35. Kg2 {[%clk 0:01:05.4]} 35... Rfb3 {[%clk 0:00:11]} 36.
Rxf7 {[%clk 0:01:01.5]} 36... Re8 {[%clk 0:00:11.5]} 37. f4 {[%clk 0:00:58.2]}
37... Rb5 {[%clk 0:00:04.4]} 38. Rxh7 {[%clk 0:00:57.5]} 38... Rexe5 {[%clk
0:00:04.7]} 39. fxe5 {[%clk 0:00:57.2]} 39... Rxe5 {[%clk 0:00:05.6]} 40. Rxa7
{[%clk 0:00:56.6]} 40... Re2+ {[%clk 0:00:05.3]} 41. Kf3 {[%clk 0:00:56.4]}
41... Rb2 {[%clk 0:00:06]} 42. Rhb7 {[%clk 0:00:54.7]} 42... Rc2 {[%clk
0:00:05.2]} 43. Ra8 {[%clk 0:00:54.2]} 43... Rc1 {[%clk 0:00:05.5]} 44. Rbb8
{[%clk 0:00:53.8]} 44... Rf1+ {[%clk 0:00:05.6]} 45. Ke4 {[%clk 0:00:52.8]}
45... Kg7 {[%clk 0:00:05.9]} 46. Rxf8 {[%clk 0:00:49.8]} 46... Rxf8 {[%clk
0:00:06.8]} 47. Rxf8 {[%clk 0:00:49.9]} 47... Kxf8 {[%clk 0:00:07.7]} 48. Ke5
{[%clk 0:00:46.5]} 48... Kf7 {[%clk 0:00:07.9]} 49. Kd6 {[%clk 0:00:45.4]} 49...
Kf6 {[%clk 0:00:07.9]} 50. h4 {[%clk 0:00:45.7]} 50... Kf7 {[%clk 0:00:06.3]}
51. g5 {[%clk 0:00:41.4]} 51... Kf8 {[%clk 0:00:06.5]} 52. Ke6 {[%clk
0:00:41.5]} 52... Kg7 {[%clk 0:00:07.1]} 53. Ke7 {[%clk 0:00:42.1]} 53... Kg8
{[%clk 0:00:07.3]} 54. Kf6 {[%clk 0:00:42.2]} 54... Kh7 {[%clk 0:00:07.5]} 55.
Kf7 {[%clk 0:00:42.8]} 55... Kh8 {[%clk 0:00:07.8]} 56. Kxg6 {[%clk 0:00:43]}
56... Kg8 {[%clk 0:00:08.7]} 1-0

[Event "Early-Titled-Tuesday-Blitz-May-28-2024"]
[Site "Chess.com"]
[Date "2024.05.28"]
[Round "2"]
[White "VirtualCoach"]
[Black "XeresLt"]
[Result "1-0"]
[WhiteElo "2200"]
[BlackElo "2465"]
[TimeControl "180+1"]
[EndTime "8:18:53 PDT"]
[Termination "VirtualCoach won by resignation"]

1. e4 {[%clk 0:03:00.9]} 1... e6 {[%clk 0:02:59.9]} 2. d4 {[%clk 0:02:59.1]}
2... c5 {[%clk 0:03:00.1]} 3. dxc5 {[%clk 0:02:56.9]} 3... Bxc5 {[%clk
0:03:00.2]} 4. Bd3 {[%clk 0:02:39.9]} 4... Ne7 {[%clk 0:02:43.7]} 5. Nf3 {[%clk
0:02:38.6]} 5... O-O {[%clk 0:02:43.8]} 6. O-O {[%clk 0:02:38.3]} 6... f5 {[%clk
0:02:43.8]} 7. e5 {[%clk 0:02:29.3]} 7... Nbc6 {[%clk 0:02:41.6]} 8. c3 {[%clk
0:02:28]} 8... Ng6 {[%clk 0:02:41.6]} 9. Qe2 {[%clk 0:02:24.1]} 9... a6 {[%clk
0:02:36.5]} 10. Nbd2 {[%clk 0:02:23.8]} 10... b5 {[%clk 0:02:35.7]} 11. a4
{[%clk 0:02:22.9]} 11... b4 {[%clk 0:02:35.3]} 12. Nc4 {[%clk 0:02:17.7]} 12...
Bb7 {[%clk 0:02:33.1]} 13. Bd2 {[%clk 0:02:11.5]} 13... bxc3 {[%clk 0:02:27.9]}
14. bxc3 {[%clk 0:02:12.2]} 14... Na5 {[%clk 0:02:17.5]} 15. Rfe1 {[%clk
0:02:05.3]} 15... Nb3 {[%clk 0:02:06.6]} 16. Rab1 {[%clk 0:02:03.1]} 16... Nxd2
{[%clk 0:02:06.8]} 17. Rxb7 {[%clk 0:01:57.8]} 17... Nxc4 {[%clk 0:01:49.7]} 18.
Bxc4 {[%clk 0:01:56.8]} 18... Qc8 {[%clk 0:01:45.1]} 19. Reb1 {[%clk 0:01:53.6]}
19... Qc6 {[%clk 0:01:37.1]} 20. Qd3 {[%clk 0:01:50.7]} 20... Nf4 {[%clk
0:01:33]} 21. Qxd7 {[%clk 0:01:32.5]} 21... Qxd7 {[%clk 0:01:21]} 22. Rxd7
{[%clk 0:01:31.3]} 22... Rab8 {[%clk 0:01:20.6]} 23. Rbb7 {[%clk 0:01:12.7]}
23... Rxb7 {[%clk 0:01:20.3]} 24. Rxb7 {[%clk 0:01:12]} 24... Rd8 {[%clk
0:01:21]} 25. g3 {[%clk 0:01:07]} 25... Rd1+ {[%clk 0:01:19.1]} 26. Bf1 {[%clk
0:01:00.3]} 26... Nd3 {[%clk 0:00:46.1]} 27. Kg2 {[%clk 0:00:47.7]} 27... Nxf2
{[%clk 0:00:43.5]} 28. Bc4 {[%clk 0:00:39.8]} 28... Ng4 {[%clk 0:00:42]} 29.
Bxe6+ {[%clk 0:00:36.5]} 29... Kf8 {[%clk 0:00:42.3]} 30. Rd7 {[%clk 0:00:15.4]}
30... Ne3+ {[%clk 0:00:35]} 31. Kh3 {[%clk 0:00:14.7]} 31... Rc1 {[%clk
0:00:20.2]} 32. Ng5 {[%clk 0:00:10]} 32... h6 {[%clk 0:00:19.4]} 33. Nh7+ {[%clk
0:00:09.6]} 33... Ke8 {[%clk 0:00:19.8]} 34. Rxg7 {[%clk 0:00:09]} 34... Rxc3
{[%clk 0:00:18.5]} 35. Nf6+ {[%clk 0:00:09.1]} 35... Kd8 {[%clk 0:00:17.9]} 36.
Rd7+ {[%clk 0:00:09.5]} 36... Kc8 {[%clk 0:00:18.5]} 37. Rd3+ {[%clk 0:00:09.6]}
37... Kc7 {[%clk 0:00:18.6]} 38. Rxc3 {[%clk 0:00:10.1]} 38... Kb6 {[%clk
0:00:19.4]} 39. Nd5+ {[%clk 0:00:09.5]} 39... Nxd5 {[%clk 0:00:19]} 40. Bxd5
{[%clk 0:00:10.4]} 40... Bd4 {[%clk 0:00:19.9]} 41. Rc6+ {[%clk 0:00:10.5]}
41... Ka5 {[%clk 0:00:19.9]} 42. e6 {[%clk 0:00:11.4]} 1-0